fUST/lending_fUST_20250615
["ID","MTS","AMOUNT","RATE_DAILY","PERIOD"]
[365926412,1749989441797,-585.85,0.00023013,2]
[365926414,1749989441810,-1083.5,0.00023013,2]
[365926417,1749989441823,-1180.81,0.00023013,2]
[365926419,1749989441836,-1500.54,0.00023013,2]
[365926422,1749989441849,-1142.85,0.00023013,2]
[365926424,1749989441862,-153.0,0.00023014,2]
[365926426,1749989441875,-158.9019424,0.00023014,2]
[365926429,1749989441889,-573.8932911,0.00023014,2]
[365926431,1749989441901,-158.9019424,0.00023014,2]
[365926434,1749989441914,-573.8932911,0.00023014,2]
[365926436,1749989441928,-1500.0,0.00023015,2]
[365926439,1749989441941,-1500.0,0.00023015,2]
[365926441,1749989441954,-600.0,0.0002304,2]
[365926443,1749989441967,-700.0,0.00023052,2]
[365926446,1749989441980,-500.0,0.00023068,2]
[365926448,1749989441993,-1500.0,0.00023068,2]
[365926451,1749989442006,-151.0,0.00023071,7]
[365926453,1749989442018,-151.0,0.00023084,7]
[365926455,1749989442031,-151.0,0.00023084,7]
[365926458,1749989442041,-151.0,0.00023084,7]
[365926460,1749989442052,-200.303366,0.00023084,7]
[365926462,1749989442064,-587.0,0.00023088,2]
[365926464,1749989442078,-394.30830022,0.00023088,2]
[365926467,1749989442091,-800.0,0.00023096,2]
[365926469,1749989442102,-151.0,0.000231,9]
[365926471,1749989442112,-58734.36,0.000231,7]
[365926473,1749989442123,-151.0,0.000231,7]
[365926476,1749989442136,-151.0,0.000231,7]
[365926478,1749989442147,-151.0,0.000231,7]
[365926480,1749989442158,-151.0,0.000231,7]
[365926482,1749989442168,-151.0,0.000231,7]
[365926485,1749989442181,-151.0,0.000231,7]
[365926487,1749989442192,-151.0,0.000231,7]
[365926489,1749989442204,-151.0,0.000231,7]
[365926491,1749989442216,-151.0,0.000231,7]
[365926493,1749989442227,-151.0,0.000231,7]
[365926496,1749989442239,-151.0,0.000231,7]
[365926498,1749989442250,-151.0,0.000231,7]
[365926500,1749989442261,-151.0,0.000231,7]
[365926502,1749989442272,-151.0,0.000231,7]
[365926505,1749989442282,-225.402307,0.000231,7]
[365926507,1749989442293,-225.402307,0.000231,7]
[365926509,1749989442304,-202.585169,0.000231,7]
[365926511,1749989442315,-202.585169,0.000231,7]
[365926513,1749989442326,-700.0,0.00023105,2]
[365926516,1749989442337,-166.90340682,0.00023107,2]
[365926518,1749989442348,-700.0,0.00023112,2]
[365926520,1749989442360,-500.0,0.00023117,2]
[365926523,1749989442372,-1502.3111618,0.00023127,2]
[365926525,1749989442383,-1500.0,0.00023127,2]
[365926527,1749989442394,-1500.0,0.00023127,2]
[365926529,1749989442406,-1800.0,0.00023127,2]
[365926532,1749989442417,-1000.0,0.00023127,2]
[365926534,1749989442429,-180.04360434,0.00023127,2]
[365926536,1749989442440,-369.0669928,0.00023151,2]
[365926538,1749989442451,-365.3426848,0.00023151,2]
[365926541,1749989442462,-365.3426848,0.00023151,2]
[365926543,1749989442473,-365.3426848,0.00023151,2]
[365926545,1749989442484,-365.3426848,0.00023151,2]
[365926547,1749989442495,-365.3426848,0.00023151,2]
[365926549,1749989442506,-161.44966308,0.00023151,2]
[365926552,1749989442517,-160.06694726,0.00023151,2]
[365926554,1749989442528,-160.07928484,0.00023151,2]
[365926556,1749989442539,-160.06694725,0.00023151,2]
[365926558,1749989442550,-500.0,0.00023163,2]
[365926561,1749989442562,-153.0,0.00023178,2]
[365926563,1749989442577,-1022.46,0.00023184,2]
[365926565,1749989442588,-2080.89,0.00023184,2]
[365926567,1749989442599,-697.52,0.00023184,2]
[365926569,1749989442611,-800.0,0.00023198,2]
[365926572,1749989442622,-3000.0,0.000232,2]
[365926574,1749989442633,-3000.0,0.0002321,2]
[365926576,1749989442645,-5000.0,0.00023218,2]
[365926578,1749989442657,-3000.0,0.0002322,2]
[365926581,1749989442669,-500.0,0.0002322,2]
[365926583,1749989442681,-700.0,0.00023225,2]
[365926585,1749989442692,-3000.0,0.0002323,2]
[365926587,1749989442703,-3000.0,0.0002324,2]
[365926589,1749989442714,-151.0,0.0002324,7]
[365926592,1749989442726,-151.0,0.0002324,7]
[365926594,1749989442737,-151.0,0.0002324,7]
[365926596,1749989442748,-3000.0,0.0002325,2]
[365926598,1749989442759,-151.0,0.0002325,7]
[365926601,1749989442770,-1342.269805,0.0002325,2]
[365926603,1749989442781,-1342.269805,0.0002325,2]
[365926605,1749989442792,-571.854481,0.0002325,7]
[365926607,1749989442804,-571.854481,0.0002325,7]
[365926610,1749989442816,-800.0,0.00023251,2]
[365926612,1749989442826,-3000.0,0.0002326,2]
[365926614,1749989442836,-700.0,0.00023265,2]
[365926616,1749989442847,-3000.0,0.0002327,2]
[365926617,1749989442857,-700.0,0.00023274,2]
[365926620,1749989442867,-500.0,0.00023274,2]
[365926621,1749989442877,-3000.0,0.0002328,2]
[365926623,1749989442887,-606.18394068,0.0002328,2]
[365926626,1749989442897,-150.0,0.00023283,2]
[365926644,1749989443061,-500.0,0.00023284,2]
[365926647,1749989443077,-460.0,0.00023287,2]
[365926649,1749989443087,-166.93,0.00023287,2]
[365926651,1749989443097,-1235.9,0.00023287,2]
[365926654,1749989443106,-1834.17,0.00023287,2]
[365926657,1749989443116,-1731.66,0.00023287,2]
[365926660,1749989443125,-1575.47,0.00023287,2]
[365926662,1749989443135,-547.95,0.00023287,2]
[365926664,1749989443144,-600.1,0.00023287,2]
[365926666,1749989443154,-1169.6,0.00023287,2]
[365926668,1749989443163,-650.15,0.00023287,2]
[365926670,1749989443173,-460.0,0.00023287,2]
[365926672,1749989443183,-460.0,0.00023287,2]
[365926674,1749989443192,-915.1,0.00023287,2]
[365926676,1749989443201,-1046.0,0.00023287,2]
[365926678,1749989443211,-460.0,0.00023287,2]
[365926680,1749989443220,-585.85,0.00023287,2]
[365926682,1749989443230,-1083.5,0.00023287,2]
[365926684,1749989443239,-1180.81,0.00023287,2]
[365926686,1749989443248,-1500.54,0.00023287,2]
[365926688,1749989443258,-1142.85,0.00023287,2]
[365926690,1749989443268,-3000.0,0.0002329,2]
[365926693,1749989443278,-5310.304571,0.000233,2]
[365926695,1749989443288,-151.0,0.000233,7]
[365926697,1749989443297,-964.0,0.00023301,2]
[365926699,1749989443307,-153.29865,0.00023319,7]
[365926700,1749989443316,-151.0,0.00023319,7]
[365926703,1749989443328,-2160.0,0.00023319,2]
[365926705,1749989443339,-653.0,0.00023319,2]
[365926707,1749989443349,-700.0,0.00023349,2]
[365926709,1749989443358,-772.0,0.00023351,2]
[365926712,1749989443368,-700.0,0.00023375,2]
[365926714,1749989443377,-823.0,0.00023384,2]
[365926716,1749989443386,-800.0,0.00023397,2]
[365926718,1749989443396,-333.0700408,0.00023397,2]
[365926720,1749989443406,-3000.0,0.000234,2]
[365926722,1749989443415,-772.0,0.00023402,2]
[365926724,1749989443424,-3000.0,0.0002341,2]
[365926726,1749989443434,-3000.0,0.0002342,2]
[365926728,1749989443443,-3000.0,0.0002343,2]
[365926730,1749989443453,-3000.0,0.0002344,2]
[365926732,1749989443462,-3000.0,0.0002345,2]
[365926734,1749989443472,-800.0,0.00023452,2]
[365926736,1749989443482,-160.07928484,0.00023452,2]
[365926738,1749989443491,-800.0,0.00023454,2]
[365926740,1749989443500,-1022.46,0.00023458,2]
[365926742,1749989443510,-2080.89,0.00023458,2]
[365926744,1749989443519,-697.52,0.00023458,2]
[365926746,1749989443528,-3000.0,0.0002346,2]
[365926748,1749989443537,-700.0,0.00023462,2]
[365926750,1749989443547,-484.47434949,0.00023463,2]
[365926752,1749989443556,-3000.0,0.0002347,2]
[365926754,1749989443565,-679.83965052,0.0002347,2]
[365926756,1749989443579,-3000.0,0.0002348,2]
[365926757,1749989443588,-3000.0,0.0002349,2]
[365926759,1749989443598,-215.0738,0.00023491,2]
[365926761,1749989443607,-153.681451,0.000235,7]
[365926763,1749989443617,-151.0,0.000235,7]
[365926765,1749989443626,-3000.0,0.000235,2]
[365926767,1749989443635,-5152.0,0.000235,2]
[365926769,1749989443645,-5152.0,0.000235,2]
[365926772,1749989443657,-5152.0,0.000235,2]
[365926773,1749989443667,-5152.0,0.000235,2]
[365926775,1749989443676,-5152.0,0.000235,2]
[365926777,1749989443685,-5152.0,0.000235,2]
[365926779,1749989443695,-5152.0,0.000235,2]
[365926782,1749989443704,-5152.0,0.000235,2]
[365926784,1749989443713,-2222.9,0.000235,2]
[365926786,1749989443722,-151.0,0.000235,7]
[365926787,1749989443732,-151.0,0.000235,7]
[365926790,1749989443742,-151.0,0.000235,7]
[365926791,1749989443751,-189.105303,0.000235,7]
[365926793,1749989443761,-151.0,0.000235,7]
[365926795,1749989443770,-151.0,0.000235,7]
[365926797,1749989443779,-151.0,0.000235,7]
[365926799,1749989443789,-151.0,0.000235,7]
[365926801,1749989443798,-151.0,0.000235,7]
[365926803,1749989443807,-151.0,0.000235,7]
[365926805,1749989443816,-168.30062708,0.000235,2]
[365926807,1749989443825,-151.0,0.000235,7]
[365926809,1749989443834,-151.0,0.000235,7]
[365926811,1749989443843,-280.633622,0.000235,7]
[365926813,1749989443852,-151.0,0.000235,7]
[365926815,1749989443861,-151.0,0.000235,7]
[365926817,1749989443871,-151.0,0.000235,7]
[365926819,1749989443880,-151.0,0.000235,7]
[365926822,1749989443890,-225.402307,0.000235,7]
[365926824,1749989443899,-225.402307,0.000235,7]
[365926826,1749989443909,-202.585169,0.000235,7]
[365926828,1749989443917,-202.585169,0.000235,7]
[365926829,1749989443927,-151.0,0.000235,7]
[365926830,1749989443935,-1342.269805,0.000235,2]
[365926831,1749989443944,-1342.269805,0.000235,2]
[365926832,1749989443953,-571.854481,0.000235,7]
[365926833,1749989443963,-571.854481,0.000235,7]
[365926834,1749989443972,-282.51866438,0.00023509,2]
[365926835,1749989443981,-3000.0,0.0002351,2]
[365926836,1749989443990,-3000.0,0.0002352,2]
[365926837,1749989443999,-151.0,0.0002352,7]
[365926838,1749989444009,-151.0,0.0002352,7]
[365926839,1749989444019,-151.92442,0.0002352,7]
[365926840,1749989444028,-1371.107852,0.0002352,3]
[365926841,1749989444037,-2000.0,0.0002353,2]
[365926842,1749989444046,-3000.0,0.0002353,2]
[365926843,1749989444054,-394.30830022,0.00023536,2]
[365926844,1749989444063,-3000.0,0.0002354,2]
[365926845,1749989444072,-3000.0,0.0002355,2]
[365926846,1749989444081,-151.0,0.0002355,7]
[365926847,1749989444090,-151.0,0.0002355,7]
[365926848,1749989444099,-3000.0,0.0002356,2]
[365926849,1749989444109,-200.0,0.00023561,2]
[365926850,1749989444117,-200.0,0.00023561,2]
[365926851,1749989444127,-200.0,0.00023561,2]
[365926852,1749989444136,-239.3730385,0.00023561,2]
[365926853,1749989444145,-460.0,0.00023561,2]
[365926854,1749989444154,-1235.9,0.00023561,2]
[365926856,1749989444164,-1834.17,0.00023561,2]
[365926858,1749989444173,-1731.66,0.00023561,2]
[365926860,1749989444183,-1575.47,0.00023561,2]
[365926862,1749989444192,-600.1,0.00023561,2]
[365926864,1749989444201,-1169.6,0.00023561,2]
[365926866,1749989444211,-650.15,0.00023561,2]
[365926868,1749989444220,-460.0,0.00023561,2]
[365926870,1749989444229,-460.0,0.00023561,2]
[365926872,1749989444239,-915.1,0.00023561,2]
[365926874,1749989444248,-1046.0,0.00023561,2]
[365926876,1749989444257,-456.08,0.00023561,2]
[365926878,1749989444267,-585.85,0.00023561,2]
[365926880,1749989444276,-1083.5,0.00023561,2]
[365926882,1749989444285,-1180.81,0.00023561,2]
[365926884,1749989444294,-1500.54,0.00023561,2]
[365926886,1749989444304,-1142.85,0.00023561,2]
[365926888,1749989444312,-153.8295048,0.00023562,2]
[365926890,1749989444322,-2000.0,0.00023563,2]
[365926892,1749989444331,-2000.0,0.00023563,2]
[365926894,1749989444340,-3000.0,0.0002357,2]
[365926896,1749989444349,-151.0,0.0002357,7]
[365926898,1749989444358,-3000.0,0.0002358,2]
[365926900,1749989444368,-3000.0,0.0002359,2]
[365926902,1749989444377,-3000.0,0.000236,2]
[365926904,1749989444387,-151.0,0.000236,5]
[365926906,1749989444396,-639.0,0.000236,2]
[365926908,1749989444405,-3000.0,0.0002361,2]
[365926910,1749989444415,-584.74449099,0.00023616,2]
[365926912,1749989444424,-3000.0,0.0002362,2]
[365926914,1749989444434,-3000.0,0.0002363,2]
[365926916,1749989444443,-3000.0,0.0002364,2]
[365926918,1749989444452,-500.0,0.00023643,2]
[365926920,1749989444462,-772.0,0.00023648,2]
[365926922,1749989444471,-3000.0,0.0002365,2]
[365926924,1749989444479,-3000.0,0.0002366,2]
[365926926,1749989444488,-3000.0,0.0002367,2]
[365926928,1749989444498,-151.0,0.0002367,7]
[365926930,1749989444507,-151.0,0.0002367,7]
[365926932,1749989444516,-151.0,0.0002367,7]
[365926934,1749989444526,-151.0,0.0002367,7]
[365926936,1749989444535,-151.0,0.0002367,7]
[365926938,1749989444544,-700.0,0.00023671,2]
[365926940,1749989444554,-2400.0,0.00023675,2]
[365926942,1749989444564,-2000.0,0.00023675,2]
[365926944,1749989444577,-3000.0,0.0002368,2]
[365926946,1749989444586,-225.402307,0.0002368,7]
[365926948,1749989444595,-225.402307,0.0002368,7]
[365926950,1749989444605,-202.585169,0.0002368,7]
[365926952,1749989444614,-202.585169,0.0002368,7]
[365926954,1749989444624,-3000.0,0.0002369,2]
[365926956,1749989444633,-800.0,0.00023695,2]
[365926958,1749989444642,-3000.0,0.000237,2]
[365926960,1749989444655,-151.0,0.000237,10]
[365926962,1749989444664,-3000.0,0.0002371,2]
[365926964,1749989444673,-3000.0,0.0002372,2]
[365926966,1749989444684,-3000.0,0.0002373,2]
[365926968,1749989444693,-151.0,0.0002373,7]
[365926970,1749989444702,-151.0,0.0002373,7]
[365926972,1749989444712,-151.0,0.0002373,7]
[365926974,1749989444721,-151.0,0.0002373,7]
[365926976,1749989444730,-151.0,0.0002373,7]
[365926978,1749989444740,-151.0,0.0002373,7]
[365926980,1749989444749,-151.0,0.0002373,7]
[365926982,1749989444758,-1342.269805,0.0002373,2]
[365926984,1749989444768,-1342.269805,0.0002373,2]
[365926986,1749989444777,-571.854481,0.0002373,7]
[365926988,1749989444786,-571.854481,0.0002373,7]
[365926990,1749989444795,-700.0,0.00023731,2]
[365926992,1749989444805,-1022.46,0.00023732,2]
[365926994,1749989444815,-2080.89,0.00023732,2]
[365926996,1749989444824,-697.52,0.00023732,2]
[365926998,1749989444833,-3000.0,0.0002374,2]
[365927000,1749989444843,-800.0,0.00023746,2]
[365927002,1749989444853,-3000.0,0.0002375,2]
[365927004,1749989444863,-3000.0,0.0002376,2]
[365927006,1749989444872,-5000.0,0.00023766,2]
[365927008,1749989444882,-3000.0,0.0002377,2]
[365927010,1749989444891,-3000.0,0.0002378,2]
[365927012,1749989444900,-3000.0,0.0002379,2]
[365927014,1749989444910,-151.0,0.0002379,7]
[365927016,1749989444920,-151.0,0.0002379,7]
[365927018,1749989444930,-151.0,0.0002379,7]
[365927020,1749989444939,-3000.0,0.000238,2]
[365927022,1749989444948,-70999.51018742,0.000238,2]
[365927024,1749989444958,-151.0,0.000238,7]
[365927026,1749989444967,-394.30830024,0.00023806,2]
[365927028,1749989444977,-160.0,0.00023808,2]
[365927030,1749989444986,-3000.0,0.0002381,2]
[365927032,1749989444996,-3000.0,0.0002382,2]
[365927034,1749989445005,-5726.93,0.00023821,2]
[365927036,1749989445014,-3000.0,0.0002383,2]
[365927038,1749989445023,-151.0,0.0002383,7]
[365927040,1749989445032,-225.402307,0.0002383,7]
[365927042,1749989445041,-225.402307,0.0002383,7]
[365927044,1749989445051,-202.585169,0.0002383,7]
[365927046,1749989445059,-202.585169,0.0002383,7]
[365927048,1749989445068,-250.0,0.00023831,2]
[365927050,1749989445077,-460.0,0.00023835,2]
[365927052,1749989445087,-1235.9,0.00023835,2]
[365927054,1749989445097,-1834.17,0.00023835,2]
[365927056,1749989445107,-1731.66,0.00023835,2]
[365927058,1749989445116,-1575.47,0.00023835,2]
[365927060,1749989445126,-600.1,0.00023835,2]
[365927062,1749989445135,-1169.6,0.00023835,2]
[365927064,1749989445144,-650.15,0.00023835,2]
[365927066,1749989445153,-181.793655,0.00023835,7]
[365927067,1749989445163,-355.84,0.00023835,2]
[365927069,1749989445172,-1342.269805,0.00023835,2]
[365927072,1749989445183,-434.03059094,0.00023835,2]
[365927073,1749989445193,-1342.269805,0.00023835,2]
[365927075,1749989445202,-915.1,0.00023835,2]
[365927077,1749989445211,-1046.0,0.00023835,2]
[365927079,1749989445221,-571.854481,0.00023835,7]
[365927081,1749989445231,-571.854481,0.00023835,7]
[365927084,1749989445241,-585.85,0.00023835,2]
[365927085,1749989445250,-1083.5,0.00023835,2]
[365927087,1749989445259,-1180.81,0.00023835,2]
[365927090,1749989445269,-1500.54,0.00023835,2]
[365927091,1749989445278,-1142.85,0.00023835,2]
[365927093,1749989445288,-158.9019424,0.00023836,2]
[365927095,1749989445297,-573.8932911,0.00023836,2]
[365927097,1749989445307,-573.8932911,0.00023836,2]
[365927099,1749989445316,-158.9019424,0.00023836,2]
[365927101,1749989445325,-573.8932911,0.00023836,2]
[365927103,1749989445335,-158.4678465,0.00023836,2]
[365927105,1749989445344,-352.9231067,0.00023836,2]
[365927107,1749989445353,-158.9019424,0.00023836,2]
[365927109,1749989445362,-153.0,0.00023836,2]
[365927111,1749989445372,-306.0,0.00023836,2]
[365927113,1749989445381,-573.8932911,0.00023836,2]
[365927115,1749989445390,-153.0,0.00023836,2]
[365927117,1749989445399,-177.0323298,0.00023836,2]
[365927119,1749989445409,-573.8932911,0.00023836,2]
[365927121,1749989445419,-177.0323298,0.00023836,2]
[365927123,1749989445428,-158.9019424,0.00023836,2]
[365927125,1749989445437,-177.0323298,0.00023836,2]
[365927127,1749989445446,-573.8932911,0.00023836,2]
[365927129,1749989445455,-158.9019424,0.00023836,2]
[365927131,1749989445466,-153.0,0.00023836,2]
[365927133,1749989445475,-176.4039514,0.00023836,2]
[365927135,1749989445484,-158.420898,0.00023836,2]
[365927137,1749989445494,-572.1813283,0.00023836,2]
[365927139,1749989445503,-153.0,0.00023836,2]
[365927141,1749989445513,-153.0,0.00023836,2]
[365927143,1749989445521,-151.0,0.00023836,7]
[365927145,1749989445531,-151.0,0.00023836,7]
[365927147,1749989445541,-4211.246007,0.0002384,2]
[365927149,1749989445550,-800.0,0.00023844,2]
[365927151,1749989445560,-800.0,0.0002386,2]
[365927153,1749989445570,-273.6815149,0.00023863,2]
[365927155,1749989445582,-151.828374,0.0002389,7]
[365927157,1749989445592,-548.23,0.000239,7]
[365927159,1749989445601,-2710.54654998,0.000239,2]
[365927160,1749989445610,-2200.0,0.00023917,2]
[365927162,1749989445621,-800.0,0.0002399,2]
[365927165,1749989445631,-10672.11175921,0.00024,2]
[365927166,1749989445641,-37320.37884622,0.00024,2]
[365927169,1749989445652,-6409.79575381,0.00024,30]
[365927171,1749989445662,-7945.0,0.00024,30]
[365927173,1749989445671,-2000.0,0.00024,2]
[365927175,1749989445681,-2000.0,0.00024,2]
[365927177,1749989445691,-160.0,0.00024,7]
[365927179,1749989445700,-500.0,0.00024,2]
[365927181,1749989445711,-500.0,0.00024,2]
[365927183,1749989445721,-500.0,0.00024,2]
[365927185,1749989445730,-500.0,0.00024,2]
[365927187,1749989445739,-500.0,0.00024,2]
[365927189,1749989445749,-596.53017069,0.00024,2]
[365927191,1749989445759,-500.0,0.00024,2]
[365927193,1749989445769,-500.0,0.00024,2]
[365927195,1749989445778,-500.0,0.00024,2]
[365927197,1749989445788,-500.0,0.00024,2]
[365927198,1749989445798,-500.0,0.00024,2]
[365927200,1749989445807,-500.0,0.00024,2]
[365927202,1749989445817,-500.0,0.00024,2]
[365927204,1749989445827,-500.0,0.00024,2]
[365927206,1749989445836,-266.0,0.00024,2]
[365927208,1749989445845,-4000.0,0.00024,30]
[365927210,1749989445855,-65587.67963916,0.00024,2]
[365927212,1749989445864,-9842.6216099,0.00024,42]
[365927214,1749989445874,-1685.68462999,0.00024,2]
[365927216,1749989445886,-10103.96532777,0.00024,2]
[365927219,1749989445896,-9642.93331188,0.00024,2]
[365927221,1749989445909,-10059.00857782,0.00024,2]
[365927223,1749989445919,-1683.56117331,0.00024,2]
[365927236,1749989446039,-451.40031273,0.00024,2]
[365927238,1749989446049,-206.0,0.00024,2]
[365927240,1749989446059,-62861.58,0.00024,2]
[365927242,1749989446069,-208.0,0.00024,2]
[365927244,1749989446079,-160.0,0.00024,7]
[365927246,1749989446089,-10025.63827066,0.00024,7]
[365927248,1749989446098,-206.0,0.00024,2]
[365927250,1749989446107,-160.0,0.00024,7]
[365927252,1749989446117,-206.0,0.00024,2]
[365927254,1749989446127,-206.0,0.00024,2]
[365927256,1749989446137,-19209.17839999,0.00024,2]
[365927258,1749989446146,-2000.0,0.00024,2]
[365927260,1749989446155,-206.0,0.00024,2]
[365927262,1749989446165,-160.0,0.00024,3]
[365927265,1749989446175,-160.0,0.00024,5]
[365927266,1749989446185,-151.0,0.00024,7]
[365927269,1749989446194,-151.0,0.00024,7]
[365927270,1749989446204,-151.0,0.00024,7]
[365927273,1749989446214,-184.30823,0.00024,7]
[365927274,1749989446223,-568.0,0.00024,5]
[365927276,1749989446232,-2000.0,0.00024,2]
[365927278,1749989446242,-153.0,0.00024,2]
[365927280,1749989446252,-153.0,0.00024,2]
[365927283,1749989446261,-153.0,0.00024,2]
[365927284,1749989446270,-151.0,0.00024,7]
[365927287,1749989446279,-151.0,0.00024,7]
[365927289,1749989446289,-151.0,0.00024,7]
[365927291,1749989446298,-153.0,0.00024,2]
[365927293,1749989446308,-500.0,0.00024,9]
[365927295,1749989446317,-500.0,0.00024,9]
[365927297,1749989446327,-153.0,0.00024,2]
[365927299,1749989446337,-306.0,0.00024,2]
[365927301,1749989446347,-154.858186,0.00024,7]
[365927303,1749989446357,-155.574719,0.00024,7]
[365927305,1749989446366,-151.0,0.00024,7]
[365927307,1749989446376,-151.0,0.00024,7]
[365927309,1749989446385,-159.789916,0.00024,7]
[365927311,1749989446395,-151.0,0.00024,7]
[365927313,1749989446404,-151.0,0.00024,7]
[365927315,1749989446414,-151.0,0.00024,7]
[365927317,1749989446424,-151.440646,0.00024,7]
[365927319,1749989446434,-151.0,0.00024,7]
[365927321,1749989446443,-151.0,0.00024,7]
[365927323,1749989446453,-151.0,0.00024,7]
[365927325,1749989446463,-151.0,0.00024,7]
[365927327,1749989446473,-151.0,0.00024,7]
[365927329,1749989446482,-151.0,0.00024,7]
[365927331,1749989446495,-151.0,0.00024,7]
[365927333,1749989446504,-151.0,0.00024,7]
[365927335,1749989446515,-151.0,0.00024,7]
[365927337,1749989446527,-151.0,0.00024,7]
[365927339,1749989446536,-151.0,0.00024,7]
[365927341,1749989446546,-151.0,0.00024,7]
[365927343,1749989446555,-151.0,0.00024,7]
[365927345,1749989446565,-151.0,0.00024,7]
[365927347,1749989446578,-151.0,0.00024,7]
[365927349,1749989446588,-229.077101,0.00024,7]
[365927351,1749989446597,-151.0,0.00024,7]
[365927353,1749989446607,-223.565025,0.00024,7]
[365927355,1749989446618,-151.0,0.00024,7]
[365927357,1749989446627,-151.0,0.00024,7]
[365927359,1749989446637,-151.0,0.00024,7]
[365927362,1749989446647,-151.0,0.00024,7]
[365927364,1749989446657,-225.402307,0.00024,7]
[365927366,1749989446667,-225.402307,0.00024,7]
[365927368,1749989446677,-225.402307,0.00024,7]
[365927370,1749989446687,-225.402307,0.00024,7]
[365927372,1749989446696,-151.0,0.00024,7]
[365927374,1749989446705,-151.0,0.00024,7]
[365927376,1749989446715,-187.682963,0.00024,2]
[365927378,1749989446725,-202.585169,0.00024,7]
[365927380,1749989446735,-202.585169,0.00024,7]
[365927382,1749989446745,-424.47602138,0.00024,7]
[365927384,1749989446754,-202.585169,0.00024,7]
[365927386,1749989446763,-202.585169,0.00024,7]
[365927388,1749989446773,-835.55256958,0.00024,7]
[365927390,1749989446782,-315.37997948,0.00024,30]
[365927392,1749989446792,-1342.269805,0.00024,2]
[365927394,1749989446801,-1342.269805,0.00024,2]
[365927396,1749989446811,-1342.269805,0.00024,2]
[365927398,1749989446820,-1342.269805,0.00024,2]
[365927400,1749989446831,-571.854481,0.00024,7]
[365927402,1749989446841,-571.854481,0.00024,7]
[365927405,1749989446850,-571.854481,0.00024,7]
[365927406,1749989446860,-571.854481,0.00024,7]
[365927409,1749989446870,-160.0,0.00024,7]
[365927411,1749989446879,-229.86375354,0.00024,7]
[365927413,1749989446888,-699.2575,0.00024,2]
[365927415,1749989446898,-699.2575,0.00024,2]
[365927417,1749989446907,-160.0,0.00024,7]
[365927419,1749989446916,-1022.46,0.00024006,2]
[365927421,1749989446926,-2080.89,0.00024006,2]
[365927423,1749989446936,-697.52,0.00024006,2]
[365927425,1749989446945,-800.0,0.00024038,2]
[365927427,1749989446955,-700.0,0.00024041,2]
[365927429,1749989446964,-500.0,0.0002405,2]
[365927431,1749989446974,-500.0,0.0002405,2]
[365927433,1749989446983,-500.0,0.0002405,2]
[365927435,1749989446992,-500.0,0.0002405,2]
[365927437,1749989447001,-500.0,0.0002405,2]
[365927439,1749989447011,-500.0,0.0002405,2]
[365927463,1749989447228,-500.0,0.0002405,2]
[365927465,1749989447238,-500.0,0.0002405,2]